[Event "Modransky Cup 2025"]
[Site "Modra"]
[Date "2025.02.21"]
[Round "2.23"]
[White "Chlupik Michal"]
[Black "Hanzel, Richard"]
[Result "0-1"]
[Annotator "NA"]
[ECO "B17"]
[WhiteElo "1355"]
[BlackElo "1668"]
[PlyCount "114"]
[EventDate "2025.02.20"]
[EventCountry "SVK"]
[SourceTitle "playchess.com"]
[Source "ChessBase"]
[SourceQuality "1"]
[TimeControl "5400+30"]

1. e4 {[%emt 0:00:20]} c6 {[%emt 0:00:18]} 2. d4 {[%emt 0:01:03]} d5 {[%emt 0:00:07]} 3. Nd2 {[%emt 0:00:55]} dxe4 {[%emt 0:00:08]} 4. Nxe4 {[%emt 0:00:09]} Nd7 {[%emt 0:00:06]} 5. Nf3 {[%emt 0:01:17]} Ngf6 {[%emt 0:00:12]} 6. Nc3 {[%emt 0:02:40]} e6 {[%emt 0:00:25]} 7. Bf4 {[%emt 0:02:30]} Be7 {[%emt 0:00:19]} 8. Bd3 {[%emt 0:00:54]} b6 {[%emt 0:01:27]} 9. Ne4 {[%emt 0:02:25]} Nxe4 {[%emt 0:00:27]} 10. Bxe4 {[%emt 0:00:08]} Bb7 {[%emt 0:00:10]} 11. O-O {[%emt 0:02:44]} Nf6 {[%emt 0:00:41]} 12. Bd3 {[%emt 0:01:47]} O-O {[%emt 0:00:40]} 13. c3 {[%emt 0:01:36]} c5 {[%emt 0:00:56]} 14. dxc5 {[%emt 0:02:37]} Bxc5 {[%emt 0:01:13]} 15. b4 {[%emt 0:01:28]} Be7 {[%emt 0:00:12]} 16. Qe2 {[%emt 0:01:17]} Qc8 {[%emt 0:16:51]} 17. Rac1 {[%emt 0:06:09]} Rd8 {[%emt 0:03:41]} 18. Rfd1 {[%emt 0:03:12]} Nh5 {[%emt 0:09:43]} 19. Be3 {[%emt 0:03:25]} Qc7 {[%emt 0:03:37]} 20. h3 {[%emt 0:05:31]} Nf4 {[%emt 0:01:49]} 21. Bxf4 {[%emt 0:03:03]} Qxf4 {[%emt 0:00:11]} 22. Ba6 {[%emt 0:00:23]} Bxf3 {[%emt 0:07:28]} 23. Qxf3 {[%emt 0:00:11]} Qxf3 {[%emt 0:00:17]} 24. gxf3 {[%emt 0:01:59]} Kf8 {[%emt 0:00:30]} 25. Rd3 {[%emt 0:00:30]} Bd6 {[%emt 0:02:34]} 26. Rcd1 {[%emt 0:02:09]} Ke7 {[%emt 0:01:21]} 27. Kg2 {[%emt 0:01:27]} Be5 {[%emt 0:08:54]} 28. c4 {[%emt 0:01:32]} Rxd3 {[%emt 0:01:49]} 29. Rxd3 {[%emt 0:00:09]} Rd8 {[%emt 0:00:34]} 30. Rxd8 {[%emt 0:01:05]} Kxd8 {[%emt 0:00:01]} 31. Kf1 {[%emt 0:00:08]} Kc7 {[%emt 0:00:13]} 32. Ke2 {[%emt 0:00:36]} Bc3 {[%emt 0:00:07]} 33. a3 {[%emt 0:01:09]} Bb2 {[%emt 0:00:24]} 34. a4 {[%emt 0:00:22]} Bc3 {[%emt 0:01:02]} 35. b5 {[%emt 0:00:29]} Kd6 {[%emt 0:00:07]} 36. Kd3 {[%emt 0:00:54]} Bf6 {[%emt 0:00:10]} 37. Bb7 {[%emt 0:00:53]} Kc5 {[%emt 0:00:19]} 38. Be4 {[%emt 0:00:37]} h6 {[%emt 0:00:26]} 39. Bc6 {[%emt 0:00:32]} Bd4 {[%emt 0:00:18]} 40. Be8 {[%emt 0:00:24]} f6 {[%emt 0:00:11]} 41. Bf7 {[%emt 0:00:29]} e5 {[%emt 0:00:29]} 42. f4 {[%emt 0:00:49]} Bxf2 {[%emt 0:00:52]} 43. fxe5 {[%emt 0:00:06]} fxe5 {[%emt 0:00:08]} 44. Ke4 {[%emt 0:00:08]} Bd4 {[%emt 0:00:16]} 45. Bh5 {[%emt 0:00:39]} Kd6 {[%emt 0:03:02]} 46. Bg6 {[%emt 0:01:09]} Ke6 {[%emt 0:00:26]} 47. Bh5 {[%emt 0:01:12]} Kf6 {[%emt 0:03:12]} 48. Kf3 {[%emt 0:02:43]} Kg5 {[%emt 0:00:36]} 49. Bg4 {[%emt 0:00:15]} Kh4 {[%emt 0:01:14]} 50. Ke4 {[%emt 0:03:07]} h5 {[%emt 0:01:06]} 51. Bf5 {[%emt 0:00:30]} g5 {[%emt 0:02:12]} 52. Bc8 {[%emt 0:00:19]} g4 {[%emt 0:01:11]} 53. hxg4 {[%emt 0:00:10]} hxg4 {[%emt 0:00:02]} 54. Bxg4 {[%emt 0:00:09]} Kxg4 {[%emt 0:00:07]} 55. Kd3 {[%emt 0:00:11]} Kf3 {[%emt 0:00:18]} 56. Kd2 {[%emt 0:00:24]} e4 {[%emt 0:00:13]} 57. Ke1 {[%emt 0:00:17]} e3 {[%emt 0:00:19]} 0-1

[Event "Modransky Cup 2025"]
[Site "Modra"]
[Date "2025.02.21"]
[Round "3.1"]
[White "Stevik, Patrik"]
[Black "Petrik, Matus"]
[Result "1-0"]
[Annotator "RC"]
[ECO "D02"]
[WhiteElo "2331"]
[BlackElo "1880"]
[PlyCount "27"]
[EventDate "2025.02.20"]
[EventCountry "SVK"]
[SourceTitle "playchess.com"]
[Source "ChessBase"]
[SourceQuality "1"]
[TimeControl "5400+30"]

1. Nf3 {[%emt 0:00:04]} Nf6 {[%emt 0:04:24]} 2. g3 {[%emt 0:00:30]} d5 {[%emt 0:00:20]} 3. Bg2 {[%emt 0:00:00]} c5 {[%emt 0:00:10]} 4. O-O {[%emt 0:00:00]} Nc6 {[%emt 0:00:06]} 5. d4 {[%emt 0:00:07]} cxd4 {[%emt 0:01:32]} 6. Nxd4 {[%emt 0:00:00]} g6 {[%emt 0:00:11]} 7. c4 {[%emt 0:00:00]} Nxd4 {[%emt 0:02:38]} 8. Qxd4 {[%emt 0:00:29]} dxc4 {[%emt 0:01:41]} 9. Qxd8+ {[%emt 0:00:24]} Kxd8 {[%emt 0:00:11]} 10. Rd1+ {[%emt 0:00:06]} Ke8 {[%emt 0:00:25]} 11. Nc3 {[%emt 0:01:20]} Nd7 {[%emt 0:05:06]} 12. Nb5 {[%emt 0:00:30]} Kd8 {[%emt 0:02:48]} 13. Be3 {[%emt 0:00:14]} a6 {[%emt 0:00:52]} 14. Bb6+ {[%emt 0:00:07]} 1-0

[Event "Modransky Cup 2025"]
[Site "Modra"]
[Date "2025.02.21"]
[Round "3.2"]
[White "Rozboril, Alex"]
[Black "Shirinyan, Daniel"]
[Result "0-1"]
[Annotator "RC"]
[ECO "B92"]
[WhiteElo "1633"]
[BlackElo "2231"]
[PlyCount "48"]
[EventDate "2025.02.20"]
[EventCountry "SVK"]
[SourceTitle "playchess.com"]
[Source "ChessBase"]
[SourceQuality "1"]
[TimeControl "5400+30"]

1. e4 {[%emt 0:00:08]} c5 {[%emt 0:00:03]} 2. Nf3 {[%emt 0:00:08]} d6 {[%emt 0:00:04]} 3. d4 {[%emt 0:00:17]} cxd4 {[%emt 0:00:04]} 4. Nxd4 {[%emt 0:00:10]} Nf6 {[%emt 0:00:04]} 5. Nc3 {[%emt 0:00:43]} a6 {[%emt 0:00:01]} 6. Be2 {[%emt 0:00:20]} e5 {[%emt 0:00:07]} 7. Nb3 {[%emt 0:01:00]} Be7 {[%emt 0:00:01]} 8. Be3 {[%emt 0:01:17]} Be6 {[%emt 0:00:05]} 9. a4 {[%emt 0:03:02]} Nc6 {[%emt 0:00:39]} 10. O-O {[%emt 0:02:15]} O-O {[%emt 0:00:08]} 11. f4 {[%emt 0:05:37]} exf4 {[%emt 0:00:08]} 12. Bxf4 {[%emt 0:01:42]} Rc8 {[%emt 0:00:53]} 13. Rf3 {[%emt 0:07:08]} Ne5 {[%emt 0:01:57]} 14. Rg3 {[%emt 0:05:34]} Ng6 {[%emt 0:02:38]} 15. Be3 {[%emt 0:08:07]} Rxc3 {[%emt 0:00:17]} 16. bxc3 {[%emt 0:00:23]} Nxe4 {[%emt 0:00:02]} 17. Rf3 {[%emt 0:01:05]} Nxc3 {[%emt 0:00:01]} 18. Qd3 {[%emt 0:01:48]} Nxe2+ {[%emt 0:00:07]} 19. Qxe2 {[%emt 0:00:06]} Bg4 {[%emt 0:00:12]} 20. Qf2 {[%emt 0:01:56]} Bxf3 {[%emt 0:00:05]} 21. Qxf3 {[%emt 0:06:01]} Qc7 {[%emt 0:00:08]} 22. Qe4 {[%emt 0:06:12]} Bf6 {[%emt 0:05:20]} 23. Rd1 {[%emt 0:02:28]} Be5 {[%emt 0:00:53]} 24. a5 {[%emt 0:05:29]} Bxh2+ {[%emt 0:03:45]} 0-1

[Event "Modransky Cup 2025"]
[Site "Modra"]
[Date "2025.02.21"]
[Round "3.3"]
[White "Durana, Jonas"]
[Black "Kukla, Tomas"]
[Result "1-0"]
[Annotator "NA"]
[ECO "B03"]
[WhiteElo "2006"]
[BlackElo "1856"]
[PlyCount "66"]
[EventDate "2025.02.20"]
[EventCountry "SVK"]
[SourceTitle "playchess.com"]
[Source "ChessBase"]
[SourceQuality "1"]
[TimeControl "5400+30"]

1. e4 {[%emt 0:00:03]} Nf6 {[%emt 0:00:07]} 2. e5 {[%emt 0:00:06]} Nd5 {[%emt 0:00:06]} 3. d4 {[%emt 0:00:15]} d6 {[%emt 0:00:29]} 4. exd6 {[%emt 0:00:03]} exd6 {[%emt 0:02:31]} 5. c4 {[%emt 0:00:05]} Nb6 {[%emt 0:00:42]} 6. Bd3 {[%emt 0:02:07]} Nc6 {[%emt 0:01:20]} 7. Nf3 {[%emt 0:01:43]} Bg4 {[%emt 0:00:35]} 8. Be2 {[%emt 0:06:52]} Be7 {[%emt 0:02:52]} 9. b3 {[%emt 0:01:50]} Bf6 {[%emt 0:01:48]} 10. Bb2 {[%emt 0:03:29]} Qe7 {[%emt 0:04:42]} 11. O-O {[%emt 0:00:38]} O-O {[%emt 0:10:44]} 12. Nbd2 {[%emt 0:05:18]} Bf5 {[%emt 0:02:03]} 13. Re1 {[%emt 0:02:50]} Qd7 {[%emt 0:01:06]} 14. a3 {[%emt 0:00:05]} Rae8 {[%emt 0:01:24]} 15. Ra2 {[%emt 0:02:30]} d5 {[%emt 0:05:03]} 16. c5 {[%emt 0:01:04]} Nc8 {[%emt 0:00:18]} 17. b4 {[%emt 0:04:37]} a6 {[%emt 0:01:16]} 18. Nf1 {[%emt 0:02:19]} Bg6 {[%emt 0:19:44]} 19. Ne3 {[%emt 0:01:11]} N8e7 {[%emt 0:06:03]} 20. g4 {[%emt 0:06:52]} h6 {[%emt 0:02:59]} 21. Bc3 {[%emt 0:02:43]} Be4 {[%emt 0:03:37]} 22. a4 {[%emt 0:06:23]} Ng6 {[%emt 0:01:03]} 23. b5 {[%emt 0:08:16]} axb5 {[%emt 0:05:28]} 24. axb5 {[%emt 0:00:06]} Nd8 {[%emt 0:00:16]} 25. Nd2 {[%emt 0:09:24]} Nh4 {[%emt 0:04:41]} 26. Nxe4 {[%emt 0:02:17]} Rxe4 {[%emt 0:00:28]} 27. Bd3 {[%emt 0:24:03]} Rf4 {[%emt 0:03:37]} 28. Ng2 {[%emt 0:00:04]} Rxg4 {[%emt 0:05:07]} 29. f3 {[%emt 0:00:16]} Bxd4+ {[%emt 0:02:24]} 30. Bxd4 {[%emt 0:02:42]} Rxd4 {[%emt 0:00:13]} 31. Rd2 {[%emt 0:01:57]} Qh3 {[%emt 0:06:51]} 32. Nxh4 {[%emt 0:00:49]} Rxh4 {[%emt 0:00:06]} 33. Bf1 {[%emt 0:00:58]} Qe6 {[%emt 0:02:10]} 1-0

[Event "Modransky Cup 2025"]
[Site "Modra"]
[Date "2025.02.21"]
[Round "3.4"]
[White "Janik, Marek Tobias"]
[Black "Oruzinsky, Juraj"]
[Result "1-0"]
[Annotator "ChessBase"]
[ECO "B31"]
[WhiteElo "2002"]
[BlackElo "2171"]
[PlyCount "67"]
[EventDate "2025.02.20"]
[EventCountry "SVK"]
[SourceTitle "playchess.com"]
[Source "ChessBase"]
[SourceQuality "1"]
[TimeControl "5400+30"]

1. e4 {[%emt 0:00:06]} c5 {[%emt 0:00:56]} 2. Nf3 {[%emt 0:00:06]} Nc6 {[%emt 0:00:00]} 3. Bb5 {[%emt 0:00:13]} g6 {[%emt 0:00:00]} 4. O-O {[%emt 0:00:13]} Bg7 {[%emt 0:00:00]} 5. Re1 {[%emt 0:00:11]} Nf6 {[%emt 0:00:00]} 6. e5 {[%emt 0:01:22]} Nd5 {[%emt 0:00:00]} 7. Nc3 {[%emt 0:00:04]} Nc7 {[%emt 0:00:00]} 8. Bf1 {[%emt 0:03:43]} Ne6 {[%emt 0:03:25]} 9. Nd5 {[%emt 0:08:12]} d6 {[%emt 0:03:13]} 10. exd6 {[%emt 0:00:48]} Qxd6 {[%emt 0:00:08]} 11. Ne3 {[%emt 0:01:56]} O-O {[%emt 0:01:29]} 12. a4 {[%emt 0:03:38]} b6 {[%emt 0:03:57]} 13. Nc4 {[%emt 0:05:08]} Qc7 {[%emt 0:00:53]} 14. d3 {[%emt 0:00:51]} Bb7 {[%emt 0:01:27]} 15. c3 {[%emt 0:01:51]} Rad8 {[%emt 0:00:35]} 16. Be3 {[%emt 0:15:10]} Rd7 {[%emt 0:01:31]} 17. Qc1 {[%emt 0:00:28]} Rfd8 {[%emt 0:08:09]} 18. Ng5 {[%emt 0:00:59]} Nxg5 {[%emt 0:00:59]} 19. Bxg5 {[%emt 0:00:08]} Re8 {[%emt 0:04:30]} 20. Qe3 {[%emt 0:07:54]} Ba6 {[%emt 0:25:29]} 21. g3 {[%emt 0:12:33]} e6 {[%emt 0:08:19]} 22. Rad1 {[%emt 0:04:47]} Ne7 {[%emt 0:02:07]} 23. Bf4 {[%emt 0:11:53]} Qd8 {[%emt 0:11:18]} 24. Ne5 {[%emt 0:02:41]} Nd5 {[%emt 0:01:02]} 25. Qf3 {[%emt 0:00:30]} Rc7 {[%emt 0:02:21]} 26. d4 {[%emt 0:07:01]} Bxf1 {[%emt 0:00:50]} 27. Kxf1 {[%emt 0:00:25]} Nxf4 {[%emt 0:02:20]} 28. Qxf4 {[%emt 0:00:16]} Bxe5 {[%emt 0:01:02]} 29. Qxe5 {[%emt 0:00:37]} Rd7 {[%emt 0:00:50]} 30. d5 {[%emt 0:01:44]} Kf8 {[%emt 0:07:30]} 31. dxe6 {[%emt 0:03:15]} Rxe6 {[%emt 0:01:59]} 32. Qh8+ {[%emt 0:00:05]} Ke7 {[%emt 0:00:04]} 33. Rxe6+ {[%emt 0:00:04]} fxe6 {[%emt 0:00:04]} 34. Qxh7+ {[%emt 0:00:04]} 1-0

[Event "Modransky Cup 2025"]
[Site "Modra"]
[Date "2025.02.21"]
[Round "3.5"]
[White "Banas, Kamil"]
[Black "Meszaros, Casey Ryan"]
[Result "1-0"]
[Annotator "ChessBase"]
[ECO "C45"]
[WhiteElo "2178"]
[BlackElo "2003"]
[PlyCount "69"]
[EventDate "2025.02.20"]
[EventCountry "SVK"]
[SourceTitle "playchess.com"]
[Source "ChessBase"]
[SourceQuality "1"]
[TimeControl "5400+30"]

1. e4 {[%emt 0:13:39]} e5 {[%emt 0:00:11]} 2. Nf3 {[%emt 0:00:39]} Nc6 {[%emt 0:00:13]} 3. d4 {[%emt 0:00:07]} exd4 {[%emt 0:00:17]} 4. Nxd4 {[%emt 0:00:02]} Bc5 {[%emt 0:01:14]} 5. Nxc6 {[%emt 0:00:16]} Qf6 {[%emt 0:00:11]} 6. Qf3 {[%emt 0:00:03]} Qxf3 {[%emt 0:05:23]} 7. gxf3 {[%emt 0:00:04]} dxc6 {[%emt 0:00:17]} 8. Be3 {[%emt 0:00:36]} Bxe3 {[%emt 0:01:39]} 9. fxe3 {[%emt 0:00:02]} Be6 {[%emt 0:02:42]} 10. Rg1 {[%emt 0:04:21]} g6 {[%emt 0:01:15]} 11. Bd3 {[%emt 0:00:51]} O-O-O {[%emt 0:01:33]} 12. Nd2 {[%emt 0:02:08]} Nh6 {[%emt 0:03:28]} 13. Ke2 {[%emt 0:02:25]} f5 {[%emt 0:05:44]} 14. exf5 {[%emt 0:03:00]} Bxf5 {[%emt 0:01:56]} 15. Bxf5+ {[%emt 0:02:51]} Nxf5 {[%emt 0:00:27]} 16. c3 {[%emt 0:03:44]} Rde8 {[%emt 0:04:06]} 17. e4 {[%emt 0:01:18]} Rhf8 {[%emt 0:01:19]} 18. Rg4 {[%emt 0:02:55]} Ng7 {[%emt 0:08:42]} 19. Rh4 {[%emt 0:11:22]} Nh5 {[%emt 0:01:16]} 20. Ke3 {[%emt 0:00:54]} Nf6 {[%emt 0:08:14]} 21. c4 {[%emt 0:03:43]} Re5 {[%emt 0:06:03]} 22. f4 {[%emt 0:02:01]} Rh5 {[%emt 0:02:36]} 23. Rxh5 {[%emt 0:00:08]} Nxh5 {[%emt 0:00:07]} 24. Rf1 {[%emt 0:00:08]} Kd7 {[%emt 0:01:20]} 25. Nb3 {[%emt 0:01:20]} b6 {[%emt 0:01:10]} 26. Nd4 {[%emt 0:02:12]} c5 {[%emt 0:05:49]} 27. Nf3 {[%emt 0:00:34]} Nf6 {[%emt 0:04:01]} 28. e5 {[%emt 0:03:08]} Re8 {[%emt 0:03:13]} 29. Rd1+ {[%emt 0:00:45]} Kc6 {[%emt 0:00:39]} 30. h3 {[%emt 0:00:22]} a6 {[%emt 0:02:01]} 31. Ng5 {[%emt 0:02:14]} h6 {[%emt 0:09:51]} 32. Nf7 {[%emt 0:01:43]} Nd7 {[%emt 0:04:44]} 33. Rg1 {[%emt 0:00:57]} g5 {[%emt 0:04:59]} 34. fxg5 {[%emt 0:00:13]} hxg5 {[%emt 0:00:45]} 35. Rxg5 {[%emt 0:00:05]} 1-0

[Event "Modransky Cup 2025"]
[Site "Modra"]
[Date "2025.02.21"]
[Round "3.6"]
[White "Smetana, Peter"]
[Black "Chlpek, Daniel"]
[Result "1/2-1/2"]
[Annotator "NA"]
[ECO "C45"]
[WhiteElo "1947"]
[BlackElo "2039"]
[PlyCount "39"]
[EventDate "2025.02.20"]
[EventCountry "SVK"]
[SourceTitle "playchess.com"]
[Source "ChessBase"]
[SourceQuality "1"]
[TimeControl "5400+30"]

1. e4 {[%emt 0:00:05]} e5 {[%emt 0:00:08]} 2. Nf3 {[%emt 0:00:12]} Nc6 {[%emt 0:00:38]} 3. d4 {[%emt 0:00:19]} exd4 {[%emt 0:00:09]} 4. Nxd4 {[%emt 0:00:05]} Nf6 {[%emt 0:00:10]} 5. Nxc6 {[%emt 0:00:16]} bxc6 {[%emt 0:00:07]} 6. Bd3 {[%emt 0:00:06]} d5 {[%emt 0:00:18]} 7. exd5 {[%emt 0:01:03]} cxd5 {[%emt 0:00:10]} 8. O-O {[%emt 0:00:13]} Be7 {[%emt 0:00:19]} 9. c4 {[%emt 0:01:41]} O-O {[%emt 0:00:39]} 10. Nc3 {[%emt 0:00:49]} Be6 {[%emt 0:00:51]} 11. cxd5 {[%emt 0:01:16]} Nxd5 {[%emt 0:04:35]} 12. Nxd5 {[%emt 0:01:02]} Qxd5 {[%emt 0:13:58]} 13. Qc2 {[%emt 0:01:55]} Qh5 {[%emt 0:00:25]} 14. Bf4 {[%emt 0:15:27]} Bd6 {[%emt 0:12:15]} 15. Bg3 {[%emt 0:01:12]} Bxg3 {[%emt 0:04:05]} 16. fxg3 {[%emt 0:00:51]} Rad8 {[%emt 0:12:17]} 17. Rf4 {[%emt 0:02:29]} g6 {[%emt 0:08:16]} 18. b3 {[%emt 0:11:05]} Qe5 {[%emt 0:00:22]} 19. Rd1 {[%emt 0:00:52]} Rd4 {[%emt 0:10:29]} 20. Re4 {[%emt 0:02:32]} 1/2-1/2

[Event "Modransky Cup 2025"]
[Site "Modra"]
[Date "2025.02.21"]
[Round "3.7"]
[White "Bucor, Mark"]
[Black "Iankin, Arseni"]
[Result "1/2-1/2"]
[Annotator "NA"]
[ECO "C11"]
[WhiteElo "1875"]
[BlackElo "2016"]
[PlyCount "37"]
[EventDate "2025.02.20"]
[EventCountry "SVK"]
[SourceTitle "playchess.com"]
[Source "ChessBase"]
[SourceQuality "1"]
[TimeControl "5400+30"]

1. e4 {[%emt 0:00:08]} e6 {[%emt 0:00:06]} 2. d4 {[%emt 0:00:04]} d5 {[%emt 0:00:06]} 3. Nc3 {[%emt 0:00:07]} Nf6 {[%emt 0:00:02]} 4. e5 {[%emt 0:00:07]} Nfd7 {[%emt 0:00:04]} 5. Nf3 {[%emt 0:00:07]} c5 {[%emt 0:00:09]} 6. Bg5 {[%emt 0:00:07]} Qa5 {[%emt 0:02:58]} 7. dxc5 {[%emt 0:01:10]} Nc6 {[%emt 0:06:37]} 8. Bf4 {[%emt 0:14:19]} Bxc5 {[%emt 0:02:46]} 9. Qd2 {[%emt 0:00:37]} Bb4 {[%emt 0:08:31]} 10. a3 {[%emt 0:02:16]} d4 {[%emt 0:20:33]} 11. Nxd4 {[%emt 0:02:02]} Ndxe5 {[%emt 0:04:13]} 12. O-O-O {[%emt 0:03:40]} Bxc3 {[%emt 0:01:08]} 13. Qxc3 {[%emt 0:00:23]} Qxc3 {[%emt 0:00:03]} 14. bxc3 {[%emt 0:00:10]} Bd7 {[%emt 0:00:39]} 15. Nxc6 {[%emt 0:21:28]} Nxc6 {[%emt 0:00:16]} 16. Bb5 {[%emt 0:01:04]} O-O-O {[%emt 0:07:56]} 17. Bxc6 {[%emt 0:05:01]} Bxc6 {[%emt 0:00:24]} 18. f3 {[%emt 0:00:19]} f6 {[%emt 0:01:21]} 19. Be3 {[%emt 0:06:04]} 1/2-1/2

[Event "Modransky Cup 2025"]
[Site "Modra"]
[Date "2025.02.21"]
[Round "3.8"]
[White "Osvald, David"]
[Black "Galla, Richard"]
[Result "1/2-1/2"]
[Annotator "NA"]
[ECO "D36"]
[WhiteElo "1852"]
[BlackElo "1960"]
[PlyCount "59"]
[EventDate "2025.02.20"]
[EventCountry "SVK"]
[SourceTitle "playchess.com"]
[Source "ChessBase"]
[SourceQuality "1"]
[TimeControl "5400+30"]

1. d4 {[%emt 0:00:10]} Nf6 {[%emt 0:00:10]} 2. c4 {[%emt 0:00:13]} e6 {[%emt 0:00:10]} 3. Nc3 {[%emt 0:00:17]} d5 {[%emt 0:00:06]} 4. cxd5 {[%emt 0:00:23]} exd5 {[%emt 0:00:03]} 5. Bg5 {[%emt 0:00:15]} Be7 {[%emt 0:00:20]} 6. Qc2 {[%emt 0:00:25]} O-O {[%emt 0:01:10]} 7. e3 {[%emt 0:00:12]} c6 {[%emt 0:00:03]} 8. Bd3 {[%emt 0:00:17]} h6 {[%emt 0:00:06]} 9. Bh4 {[%emt 0:00:21]} Re8 {[%emt 0:00:07]} 10. Nge2 {[%emt 0:00:38]} Nbd7 {[%emt 0:00:56]} 11. O-O {[%emt 0:00:15]} Ne4 {[%emt 0:00:11]} 12. Bxe7 {[%emt 0:00:14]} Qxe7 {[%emt 0:00:03]} 13. Bxe4 {[%emt 0:00:19]} dxe4 {[%emt 0:00:49]} 14. Rfd1 {[%emt 0:00:43]} Nf6 {[%emt 0:01:29]} 15. d5 {[%emt 0:08:28]} Bg4 {[%emt 0:09:22]} 16. dxc6 {[%emt 0:17:06]} bxc6 {[%emt 0:00:03]} 17. Rd2 {[%emt 0:02:17]} Bxe2 {[%emt 0:06:50]} 18. Nxe2 {[%emt 0:03:06]} c5 {[%emt 0:01:27]} 19. Rad1 {[%emt 0:01:25]} Red8 {[%emt 0:00:19]} 20. Nf4 {[%emt 0:02:35]} Rxd2 {[%emt 0:01:13]} 21. Qxd2 {[%emt 0:00:42]} Qe5 {[%emt 0:00:50]} 22. h3 {[%emt 0:04:36]} Rc8 {[%emt 0:03:12]} 23. b3 {[%emt 0:05:31]} g5 {[%emt 0:02:28]} 24. Nd5 {[%emt 0:02:56]} Qxd5 {[%emt 0:00:34]} 25. Qxd5 {[%emt 0:00:08]} Nxd5 {[%emt 0:00:04]} 26. Rxd5 {[%emt 0:00:06]} c4 {[%emt 0:00:06]} 27. bxc4 {[%emt 0:00:52]} Rxc4 {[%emt 0:00:09]} 28. Ra5 {[%emt 0:00:43]} Rc7 {[%emt 0:00:11]} 29. g4 {[%emt 0:01:06]} Kg7 {[%emt 0:00:17]} 30. Kg2 {[%emt 0:00:43]} 1/2-1/2

[Event "Modransky Cup 2025"]
[Site "Modra"]
[Date "2025.02.21"]
[Round "3.9"]
[White "Ondreicka, Roman"]
[Black "Hitka, Dominik"]
[Result "1/2-1/2"]
[Annotator "NA"]
[ECO "A04"]
[WhiteElo "1842"]
[BlackElo "2099"]
[PlyCount "66"]
[EventDate "2025.02.20"]
[EventCountry "SVK"]
[SourceTitle "playchess.com"]
[Source "ChessBase"]
[SourceQuality "1"]
[TimeControl "5400+30"]

1. Nf3 {[%emt 0:00:09]} f5 {[%emt 0:00:27]} 2. g3 {[%emt 0:00:05]} Nf6 {[%emt 0:00:07]} 3. b3 {[%emt 0:00:13]} d6 {[%emt 0:00:05]} 4. Bg2 {[%emt 0:00:09]} e5 {[%emt 0:00:05]} 5. d3 {[%emt 0:00:07]} Be7 {[%emt 0:00:05]} 6. Bb2 {[%emt 0:00:11]} O-O {[%emt 0:00:10]} 7. O-O {[%emt 0:00:12]} a5 {[%emt 0:00:44]} 8. c4 {[%emt 0:01:45]} Qe8 {[%emt 0:02:33]} 9. Nc3 {[%emt 0:02:10]} Na6 {[%emt 0:01:24]} 10. e3 {[%emt 0:11:01]} Qh5 {[%emt 0:01:41]} 11. Nd2 {[%emt 0:01:10]} Qg6 {[%emt 0:04:00]} 12. Nd5 {[%emt 0:01:55]} Nxd5 {[%emt 0:00:30]} 13. Bxd5+ {[%emt 0:00:52]} Kh8 {[%emt 0:00:13]} 14. Qe2 {[%emt 0:06:15]} c6 {[%emt 0:07:06]} 15. Bg2 {[%emt 0:01:46]} Bd7 {[%emt 0:08:36]} 16. f4 {[%emt 0:10:16]} exf4 {[%emt 0:01:59]} 17. gxf4 {[%emt 0:00:52]} Bf6 {[%emt 0:01:56]} 18. Bxf6 {[%emt 0:02:41]} Qxf6 {[%emt 0:00:12]} 19. a3 {[%emt 0:08:53]} Rae8 {[%emt 0:04:13]} 20. Rae1 {[%emt 0:02:59]} Qb2 {[%emt 0:02:30]} 21. Rf3 {[%emt 0:08:42]} Qxa3 {[%emt 0:07:05]} 22. Rh3 {[%emt 0:01:31]} g6 {[%emt 0:00:55]} 23. Qf2 {[%emt 0:05:40]} Rf7 {[%emt 0:08:23]} 24. Nf3 {[%emt 0:03:06]} Qxb3 {[%emt 0:03:59]} 25. Ng5 {[%emt 0:00:36]} Rg7 {[%emt 0:01:34]} 26. Qh4 {[%emt 0:00:27]} Qc3 {[%emt 0:11:05]} 27. Nxh7 {[%emt 0:03:29]} Kg8 {[%emt 0:00:20]} 28. Nf6+ {[%emt 0:00:10]} Kf7 {[%emt 0:00:09]} 29. Nxe8 {[%emt 0:02:40]} Bxe8 {[%emt 0:00:22]} 30. e4 {[%emt 0:00:44]} Qf6 {[%emt 0:02:39]} 31. Qh8 {[%emt 0:01:27]} Bd7 {[%emt 0:08:02]} 32. Rhe3 {[%emt 0:03:33]} Rg8 {[%emt 0:03:34]} 33. Qh7+ {[%emt 0:00:24]} Rg7 {[%emt 0:00:43]} 1/2-1/2

[Event "Modransky Cup 2025"]
[Site "Modra"]
[Date "2025.02.21"]
[Round "3.10"]
[White "Pongo, Aron"]
[Black "Sekera, Timotej"]
[Result "1/2-1/2"]
[Annotator "NA"]
[ECO "A08"]
[WhiteElo "2030"]
[BlackElo "1802"]
[PlyCount "59"]
[EventDate "2025.02.20"]
[EventCountry "SVK"]
[SourceTitle "playchess.com"]
[Source "ChessBase"]
[SourceQuality "1"]
[TimeControl "5400+30"]

1. e4 {[%emt 0:00:03]} c5 {[%emt 0:00:46]} 2. Nf3 {[%emt 0:00:01]} e6 {[%emt 0:00:00]} 3. g3 {[%emt 0:00:23]} Nc6 {[%emt 0:00:19]} 4. Bg2 {[%emt 0:00:31]} g6 {[%emt 0:01:28]} 5. O-O {[%emt 0:01:55]} Bg7 {[%emt 0:00:20]} 6. Re1 {[%emt 0:06:13]} Nge7 {[%emt 0:03:03]} 7. d3 {[%emt 0:01:34]} O-O {[%emt 0:01:17]} 8. Nbd2 {[%emt 0:00:55]} d5 {[%emt 0:02:36]} 9. Nf1 {[%emt 0:06:26]} b6 {[%emt 0:10:18]} 10. Qe2 {[%emt 0:20:42]} Bb7 {[%emt 0:02:02]} 11. h4 {[%emt 0:07:24]} dxe4 {[%emt 0:18:27]} 12. dxe4 {[%emt 0:00:18]} Nd4 {[%emt 0:00:50]} 13. Qd1 {[%emt 0:06:49]} Nec6 {[%emt 0:02:43]} 14. Bg5 {[%emt 0:06:44]} f6 {[%emt 0:07:07]} 15. Be3 {[%emt 0:02:13]} e5 {[%emt 0:00:59]} 16. c3 {[%emt 0:04:22]} Nxf3+ {[%emt 0:00:24]} 17. Bxf3 {[%emt 0:05:38]} Qxd1 {[%emt 0:07:33]} 18. Bxd1 {[%emt 0:05:12]} c4 {[%emt 0:03:45]} 19. Be2 {[%emt 0:02:26]} Na5 {[%emt 0:00:38]} 20. f3 {[%emt 0:01:55]} Rfd8 {[%emt 0:07:28]} 21. Rad1 {[%emt 0:01:20]} h5 {[%emt 0:01:53]} 22. Rd2 {[%emt 0:08:12]} Kf7 {[%emt 0:01:47]} 23. Red1 {[%emt 0:00:41]} Ke7 {[%emt 0:00:12]} 24. Bf2 {[%emt 0:04:27]} Bh6 {[%emt 0:00:36]} 25. Rxd8 {[%emt 0:01:14]} Rxd8 {[%emt 0:00:10]} 26. Rxd8 {[%emt 0:00:05]} Kxd8 {[%emt 0:00:08]} 27. Ne3 {[%emt 0:00:36]} Bxe3 {[%emt 0:02:28]} 28. Bxe3 {[%emt 0:00:06]} Ke7 {[%emt 0:01:04]} 29. Kf2 {[%emt 0:01:00]} Ke6 {[%emt 0:00:46]} 30. Bd2 {[%emt 0:04:08]} 1/2-1/2